bitfinex-derivatives/quotes_ETHF0:USTF0_20250816
["timestamp","ask_amount","ask_price","bid_price","bid_amount"]
[1755374974467,0.20049252,4415.2,4415.1,22.0324]
[1755374974667,0.3935,4415.9,4415.1,22.68830455]
[1755374974871,0.20048092,4415.8,4415.7,1.2814]
[1755374975167,4.287,4417.0,4416.9,1.0385]
[1755374975371,4.4875171,4417.0,4416.9,22.0304]
[1755374975872,4.8810171,4417.0,4416.9,22.0304]
[1755374977178,4.6805,4417.0,4416.9,22.0304]
[1755374979276,1.4727,4417.0,4416.9,22.0304]
[1755374982679,3.2078,4417.5,4416.9,21.0959]
[1755374982880,0.589,4417.0,4416.9,21.3388]
[1755374983073,1.4727,4417.0,4416.9,21.3388]
[1755374983576,1.4727,4417.0,4416.9,22.0304]
[1755374985179,1.4727,4417.0,4416.9,1.0385]
[1755374985481,1.4727,4417.0,4416.9,21.7565]
[1755374986879,1.4727,4417.0,4416.9,1.0385]
[1755374987080,1.4727,4417.0,4416.9,21.7505]
[1755374988986,1.4727,4417.0,4416.9,21.7455]
[1755374989782,1.4727,4417.0,4416.9,1.0385]
[1755374989983,1.4727,4417.0,4416.9,21.7455]
[1755374990286,1.4727,4417.0,4416.9,21.9884]
[1755374995185,1.4727,4417.0,4416.9,1.2814]
[1755374995485,1.4619,4416.8,4416.7,3.2078]
[1755374995684,1.4619,4416.8,4416.7,24.0709]
[1755374995884,1.4619,4416.8,4416.7,24.9603]
[1755374996281,1.4619,4416.8,4416.7,25.2219]
[1755375001090,1.4619,4416.8,4416.7,3.5515]
[1755375001288,1.4619,4416.8,4416.7,23.8868]
[1755375001490,1.4619,4416.8,4416.7,3.2078]
[1755375001892,1.4619,4416.8,4416.7,23.8818]
[1755375002194,1.66133277,4416.8,4416.7,23.8818]
[1755375003892,1.66133277,4416.8,4416.7,3.2078]
[1755375004087,1.66133277,4416.8,4416.7,24.5705]
[1755375004491,1.66133277,4416.8,4416.7,3.8975]
[1755375004692,1.66133277,4416.8,4416.7,24.7381]
[1755375005085,1.66133277,4416.8,4416.7,24.9423]
[1755375005286,1.66133277,4416.8,4416.7,24.9413]
[1755375006392,1.66133277,4416.8,4416.7,4.2713]
[1755375006592,1.66133277,4416.8,4416.7,24.9403]
[1755375008890,1.66133277,4416.8,4416.7,24.7361]
[1755375010095,0.45903277,4416.8,4416.7,24.2205]
[1755375010290,1.66133277,4416.8,4416.7,25.2019]
[1755375014094,1.66133277,4416.8,4416.7,25.1859]
[1755375015798,1.66133277,4416.8,4416.7,3.2078]
[1755375016008,1.66133277,4416.8,4416.7,23.8568]
[1755375016494,1.66133277,4416.8,4416.7,3.2078]
[1755375016694,1.66133277,4416.8,4416.7,23.8528]
[1755375016890,1.66133277,4416.8,4416.7,24.5425]
[1755375017200,1.66133277,4416.8,4416.7,24.9163]
[1755375017401,1.66133277,4416.8,4416.7,24.7121]
[1755375017694,1.66133277,4416.8,4416.7,24.9163]
[1755375017900,0.19943277,4416.8,4416.7,24.9737]
[1755375018199,0.83513277,4416.8,4416.7,25.1779]
[1755375018403,1.40573277,4416.8,4416.7,25.1779]
[1755375018601,1.66133277,4416.8,4416.7,25.1779]
[1755375019589,0.19943277,4416.8,4416.7,25.1564]
[1755375019793,0.19943277,4416.8,4416.7,25.179]
[1755375020007,0.19943277,4416.8,4416.7,4.5114]
[1755375020205,0.19943277,4416.8,4416.7,25.1544]
[1755375022701,0.19989845,4416.8,4416.7,24.442]
[1755375023005,1.0942,4417.0,4416.9,1.3012]
[1755375023207,1.85106858,4417.0,4416.9,21.9402]
[1755375023703,2.23306858,4417.0,4416.9,21.9402]
[1755375026109,1.97126858,4417.0,4416.9,21.9402]
[1755375026511,1.01206858,4417.0,4416.9,21.9402]
[1755375028209,0.75686858,4417.0,4416.9,21.9402]
[1755375028614,0.75681199,4417.0,4416.9,21.9402]
[1755375029109,0.75681138,4417.0,4416.9,21.9402]
[1755375030008,1.13881138,4417.0,4416.9,21.9402]
[1755375032622,0.58184704,4417.0,4416.9,21.9402]
[1755375035117,0.19984704,4417.0,4416.9,21.9402]
[1755375035915,0.58184704,4417.0,4416.9,21.9402]
[1755375036914,0.19984704,4417.0,4416.9,21.9402]
[1755375037510,0.58184704,4417.0,4416.9,21.9402]
[1755375037713,0.58184881,4417.0,4416.9,21.9402]
[1755375038109,0.19984881,4417.0,4416.9,21.9402]
[1755375038309,0.19984881,4417.0,4416.9,21.9628]
[1755375038611,0.9716,4417.9,4417.8,1.3012]
[1755375038808,0.45506881,4417.9,4417.8,25.141]
[1755375039013,0.19986881,4417.9,4417.8,25.141]
[1755375040207,0.1,4418.2,4417.8,25.141]
[1755375040406,0.19970099,4418.1,4418.0,0.5888]
[1755375040608,0.19970099,4418.1,4418.0,21.9322]
[1755375041012,0.482,4418.2,4418.1,0.2521]
[1755375041013,0.1,4418.2,4418.1,0.2521]
[1755375041214,0.1,4418.2,4418.1,1.3012]
[1755375042604,0.7372,4418.2,4418.1,1.3012]
[1755375042809,1.1508,4418.2,4418.1,1.3012]
[1755375043315,0.908,4418.2,4418.1,1.3012]
[1755375043712,0.1,4418.2,4418.1,1.3012]
[1755375044106,0.482,4418.2,4418.1,1.3012]
[1755375045215,0.7372,4418.2,4418.1,1.3012]
[1755375045414,1.4126,4418.2,4418.1,21.9282]
[1755375045615,1.5762,4418.2,4418.1,21.9282]
[1755375047514,1.0716,4418.2,4418.1,21.9282]
[1755375047717,1.5762,4418.2,4418.1,21.9282]
[1755375049718,1.1698,4418.2,4418.1,21.9282]
[1755375050121,1.1698,4418.2,4418.1,21.9272]
[1755375050313,1.4222,4418.2,4418.1,21.9272]
[1755375050512,1.5973,4418.2,4418.1,21.9272]
[1755375051614,1.5973,4418.2,4417.8,3.2078]
[1755375051615,0.67,4417.9,4417.8,3.2078]
[1755375051824,1.4707,4417.3,4417.2,3.555]
[1755375052022,1.4707,4417.3,4417.2,24.18]
[1755375052417,1.4707,4417.3,4417.2,23.8328]
[1755375053915,1.4933,4417.3,4417.2,2.8081]
[1755375054121,1.4933,4417.3,4414.8,0.22436018]
[1755375054122,0.6014,4416.8,4416.7,3.2078]
[1755375054324,1.4707,4416.8,4416.7,20.2998]
[1755375054714,1.4933,4416.8,4416.7,3.2078]
[1755375054916,1.4707,4416.8,4416.7,3.2078]
[1755375059328,1.4707,4416.8,4416.7,3.3807]
[1755375059630,1.4707,4416.8,4416.7,3.6396]
[1755375060933,1.4707,4416.8,4416.7,3.9]
[1755375061335,1.4707,4416.8,4416.7,4.4573]
[1755375061634,1.4707,4416.8,4416.7,4.7162]
[1755375068036,3.2078,4417.6,4416.7,4.7162]
[1755375068237,1.07041408,4417.5,4416.8,21.54]
[1755375068535,1.67181408,4417.4,4417.3,1.5084]
[1755375069138,0.1,4418.2,4417.3,0.621]
[1755375069139,0.3732,4418.1,4417.3,0.621]
[1755375069443,0.6014,4418.0,4417.9,4.7162]
[1755375069639,0.1,4418.2,4418.0,0.91]
[1755375069842,0.1,4418.2,4418.1,1.5084]
[1755375070343,0.1,4418.2,4418.1,22.1374]
[1755375070541,0.4732,4418.2,4418.1,1.5084]
[1755375070754,0.4732,4418.2,4418.1,22.1374]
[1755375071243,0.4732,4418.2,4418.1,22.1354]
[1755375071742,0.1,4418.2,4418.1,22.1354]
[1755375077150,0.4732,4418.2,4418.1,22.1354]
[1755375077749,0.8921,4418.2,4418.1,22.1354]
[1755375079068,1.1519,4418.2,4418.1,22.1354]
[1755375079550,1.568,4418.2,4418.1,22.1354]
[1755375081556,1.568,4418.2,4418.1,22.1314]
[1755375083457,1.568,4418.2,4418.1,20.623]
[1755375083957,1.4791,4418.0,4417.9,3.2078]
[1755375084150,1.4791,4418.0,4417.9,23.8298]
[1755375084752,1.4791,4418.0,4417.9,23.9918]
[1755375084949,1.4791,4418.0,4417.9,24.24]
[1755375085256,1.4791,4418.0,4417.9,24.4903]
[1755375085849,1.4791,4418.0,4417.9,24.6575]
[1755375086056,1.4791,4418.0,4417.9,25.2948]
[1755375090260,1.4791,4418.0,4417.9,4.6728]
[1755375090460,1.4791,4418.0,4417.9,3.2078]
[1755375090757,1.4791,4418.0,4417.9,20.621]
[1755375091059,1.4791,4418.0,4417.5,0.2503]
[1755375091255,1.0861,4417.3,4417.2,4.6728]
[1755375091557,1.4791,4417.3,4417.2,25.2938]
[1755375091758,1.2381,4417.3,4417.2,25.2938]
[1755375094860,1.4791,4417.3,4417.2,25.2938]
[1755375107666,1.4791,4417.3,4417.2,25.2918]
[1755375108968,1.48297255,4417.3,4417.2,25.2918]
[1755375111272,1.68443002,4417.3,4417.2,25.2918]
[1755375111666,1.48297255,4417.3,4417.2,25.2918]
[1755375112167,1.68446404,4417.3,4417.2,25.2918]
[1755375112966,1.44346404,4417.3,4417.2,25.2918]
[1755375113472,1.20326404,4417.3,4417.2,25.2918]
[1755375113666,1.51837255,4417.3,4417.2,25.2918]
[1755375115974,1.51837255,4417.3,4417.2,4.6728]
[1755375116170,1.72023921,4417.3,4417.2,25.2908]
[1755375121974,1.72023921,4417.3,4417.2,25.2888]
[1755375123177,1.72023921,4417.3,4417.2,3.3698]
[1755375123373,1.72023921,4417.3,4417.2,24.6413]
[1755375123677,1.72023921,4417.3,4417.2,25.3105]
[1755375126375,1.72023921,4417.3,4417.2,3.3698]
[1755375126580,0.621,4416.8,4416.7,5.23895621]
[1755375126786,1.68456666,4416.8,4416.7,24.3372]
[1755375126980,1.68456666,4416.8,4416.7,24.6779]
[1755375127180,1.68456666,4416.8,4416.7,25.072]
[1755375127578,1.68456666,4416.8,4416.7,3.2078]
[1755375127779,1.68456666,4416.8,4416.7,23.8218]
[1755375128174,1.68461939,4416.8,4416.7,23.8228]
[1755375128981,1.68461939,4416.8,4416.7,24.5109]
[1755375129181,1.68461939,4416.8,4416.7,25.072]
[1755375134477,1.68461939,4416.8,4416.7,25.3212]
[1755375136088,1.68461939,4416.8,4416.7,4.7062]
[1755375136286,1.68461939,4416.8,4416.7,25.3212]
[1755375136985,1.68461939,4416.8,4416.7,4.2862]
[1755375137187,1.68461939,4416.8,4416.7,25.1542]
[1755375137486,1.68461939,4416.8,4416.7,25.3212]
[1755375139996,1.68414919,4416.8,4416.7,25.3212]
[1755375144894,0.20144919,4416.8,4416.7,25.3212]
[1755375145090,0.898,4417.1,4416.8,0.8624]
[1755375145393,1.3112,4417.1,4417.0,1.4483]
[1755375145590,1.51289008,4417.1,4417.0,1.4483]
[1755375145990,1.0612,4417.1,4417.0,1.4483]
[1755375146185,0.2016941,4417.1,4417.0,1.4483]
[1755375146391,0.00387255,4417.3,4417.1,0.8624]
[1755375146592,0.00387255,4417.3,4417.2,25.2691]
[1755375147096,0.00387255,4417.3,4417.2,25.2917]
[1755375147894,3.3078,4418.2,4417.3,0.45248]
[1755375148095,0.674,4418.2,4418.1,1.4483]
[1755375148289,0.87571353,4418.2,4418.1,22.0613]
[1755375148488,0.30171353,4418.2,4418.1,22.0613]
[1755375148893,0.1,4418.2,4418.1,22.0613]
[1755375152390,0.1,4418.2,4417.7,3.2078]
[1755375152391,0.898,4418.1,4417.7,3.2078]
[1755375152697,1.472,4417.8,4417.7,4.6561]
[1755375153002,1.472,4417.8,4417.7,25.2641]
[1755375153798,1.472,4417.8,4417.7,3.2078]
[1755375154207,1.472,4417.8,4417.7,23.8158]
[1755375155699,1.472,4417.8,4417.7,24.076]
[1755375156097,1.472,4417.8,4417.7,23.8158]
[1755375159496,1.472,4417.8,4417.7,3.2078]
[1755375159702,1.472,4417.8,4417.7,23.8138]
[1755375161510,1.472,4417.8,4417.7,20.606]
[1755375162115,0.1,4418.2,4417.0,3.7937]
[1755375162116,0.824,4417.1,4417.0,3.7937]
[1755375162412,1.472,4417.1,4417.0,25.2621]
[1755375166814,1.472,4417.1,4417.0,4.6561]
[1755375167013,1.472,4417.1,4417.0,25.2611]
[1755375170117,1.472,4417.1,4417.0,4.6561]
[1755375170324,1.472,4417.1,4417.0,25.2611]
[1755375176221,1.472,4417.1,4417.0,4.6561]
[1755375176419,1.472,4417.1,4417.0,25.2601]
[1755375180527,0.4713,4418.2,4417.6,0.6195]
[1755375180728,0.4713,4418.2,4417.5,0.5935]
[1755375180729,0.7162,4418.2,4418.1,1.4676]
[1755375180929,0.91612302,4418.2,4418.1,22.0706]
[1755375181125,1.34082302,4418.2,4418.1,22.0706]
[1755375181327,1.59472302,4418.2,4418.1,22.0706]
[1755375181726,1.76212302,4418.2,4418.1,22.0706]
[1755375182627,0.29992302,4418.2,4418.1,22.0706]
[1755375182825,4.4251,4419.1,4419.0,1.1373]
[1755375183027,4.98197642,4419.1,4419.0,20.602]
[1755375183325,4.98197642,4419.1,4418.3,0.3007]
[1755375183326,4.35677642,4419.1,4418.8,20.602]
[1755375183628,0.3713,4419.0,4418.9,21.994]
[1755375183830,0.796,4419.0,4418.9,21.994]
[1755375184029,1.4622,4419.0,4418.9,21.994]
[1755375185131,3.2078,4419.6,4419.5,0.1655]
[1755375185330,3.2078,4419.6,4419.5,21.992]
[1755375185631,4.4251,4419.6,4419.5,1.0912]
[1755375185825,4.67,4419.6,4419.5,20.6]
[1755375186230,4.67,4419.6,4419.5,21.4373]
[1755375186433,3.2078,4419.6,4419.5,21.992]
[1755375186625,3.6325,4419.6,4419.5,21.992]
[1755375186826,4.67,4419.6,4419.5,21.992]
[1755375187429,4.4161,4419.6,4419.5,21.992]
[1755375188034,4.1712,4419.6,4419.5,21.992]
[1755375188325,4.0038,4419.6,4419.5,21.992]
[1755375188728,4.4161,4419.6,4419.5,21.992]
[1755375188930,4.67,4419.6,4419.5,21.992]
[1755375191134,4.67,4419.6,4419.5,21.987]
[1755375194036,4.67,4419.6,4419.5,21.986]
[1755375196037,4.67,4419.6,4419.5,0.1655]
[1755375196241,0.846,4419.1,4419.0,4.1028]
[1755375196442,1.4622,4419.1,4419.0,25.1928]
[1755375197242,1.4622,4419.1,4419.0,4.5998]
[1755375197541,1.4622,4419.1,4419.0,25.1918]
[1755375198440,0.9634,4419.1,4419.0,25.1918]
[1755375198638,0.2539,4419.3,4419.0,24.6364]
[1755375198846,1.3328,4419.3,4419.2,0.5929]
[1755375199143,1.3328,4419.3,4419.2,21.9928]
[1755375199347,1.4926,4419.3,4419.2,21.9928]
[1755375200743,1.4926,4419.3,4419.2,0.3481]
[1755375200943,1.4926,4419.3,4419.2,20.591]
[1755375201247,1.4926,4419.3,4419.2,21.747]
[1755375201641,1.4926,4419.3,4419.2,1.156]
[1755375201842,1.4926,4419.3,4419.2,21.746]
[1755375204249,1.487,4419.0,4418.9,0.1749]
[1755375204445,0.3328,4418.6,4418.5,3.5559]
[1755375204648,1.487,4418.6,4418.5,24.9528]
[1755375204946,1.487,4418.6,4418.5,25.1976]
[1755375207046,1.2387,4418.6,4418.5,25.1976]
[1755375207849,1.487,4418.6,4418.5,25.1976]
[1755375208247,1.487,4418.6,4418.5,4.6086]
[1755375208449,1.487,4418.6,4418.5,25.1976]
[1755375208750,1.487,4418.6,4418.5,4.3638]
[1755375208951,1.487,4418.6,4418.5,3.5559]
[1755375209248,1.487,4418.6,4418.5,24.4793]
[1755375209445,1.487,4418.6,4418.5,24.6525]
[1755375209648,1.487,4418.6,4418.5,24.9528]
[1755375209850,1.487,4418.6,4418.5,25.1976]
[1755375210551,1.487,4418.6,4418.5,21.9898]
[1755375211050,1.487,4418.6,4418.5,1.4008]
[1755375211252,1.487,4418.6,4418.5,21.9898]
[1755375212542,1.68289691,4418.6,4418.5,21.9898]
[1755375212743,1.68288101,4418.6,4418.5,21.9898]
[1755375213055,3.2078,4419.1,4419.0,0.5929]
[1755375213255,3.40368961,4419.1,4419.0,21.9898]
[1755375215552,3.79888961,4419.1,4419.0,21.9898]
[1755375215945,4.06278961,4419.1,4419.0,21.9898]
[1755375216653,4.48258961,4419.1,4419.0,21.9898]
[1755375217055,4.89068961,4419.1,4419.0,21.9898]
[1755375221160,4.00038961,4419.1,4419.0,21.9898]
[1755375221359,4.39558961,4419.1,4419.0,21.9898]
[1755375221860,4.64238961,4419.1,4419.0,21.9898]
[1755375222054,4.89068961,4419.1,4419.0,21.9898]
[1755375224360,4.89080527,4419.1,4419.0,21.9898]
[1755375227063,1.68300527,4419.1,4419.0,21.9898]
[1755375227267,1.68304279,4419.1,4419.0,21.9898]
[1755375232668,1.68304279,4419.1,4419.0,1.4008]
[1755375232871,1.68304279,4419.1,4419.0,21.9838]
[1755375234668,0.19604279,4419.1,4419.0,1.4008]
[1755375234872,3.7995,4420.4,4420.3,1.3948]
[1755375235168,0.19605696,4420.4,4420.3,1.3948]
[1755375235471,0.5917,4420.2,4420.1,0.6741]
[1755375235769,1.64042013,4420.2,4420.1,0.6741]
[1755375235974,0.3662,4420.8,4420.1,1.3948]
[1755375236273,1.15502577,4420.7,4420.6,1.3948]
[1755375236473,1.40002577,4420.7,4420.6,1.3948]
[1755375236670,1.64042577,4420.7,4420.6,1.3948]
[1755375237472,1.64042577,4420.7,4419.9,1.094]
[1755375237473,0.5917,4420.0,4419.9,1.094]
[1755375237769,1.4433,4420.0,4419.9,1.3948]
[1755375239074,0.3662,4420.2,4420.1,0.5954]
[1755375239274,0.3662,4420.2,4420.0,0.7994]
[1755375239275,1.2029,4420.8,4420.7,0.339]
[1755375239475,1.6401443,4420.8,4420.7,0.8376]
[1755375240576,1.6401443,4420.8,4420.7,0.5848]
[1755375241072,1.4433,4420.8,4420.7,0.5848]
[1755375241377,1.64013117,4420.8,4420.7,0.5848]
[1755375241569,1.64013117,4420.8,4420.7,1.1384]
[1755375241770,1.64013117,4420.8,4420.7,1.3948]
[1755375242168,0.19683117,4420.8,4420.7,0.8856]
[1755375242373,1.64013117,4420.8,4420.7,1.3948]
[1755375243277,1.64013117,4420.8,4420.7,0.8376]
[1755375243573,1.2029,4420.2,4420.1,0.9185]
[1755375243875,3.2078,4421.0,4420.1,1.4174]
[1755375244073,0.6112,4421.3,4420.8,1.3948]
[1755375244276,1.64006099,4421.2,4421.1,1.3948]
[1755375247272,0.19676099,4421.2,4420.4,3.784]
[1755375247479,1.4433,4421.3,4421.2,1.149]
[1755375247779,1.63984875,4421.3,4421.2,1.3948]
[1755375252876,0.19654875,4421.3,4421.2,0.4213]
[1755375253077,3.2078,4421.6,4421.3,0.7994]
[1755375253276,4.4107,4421.6,4421.5,1.3948]
[1755375253576,1.0425,4421.1,4421.0,1.3948]
[1755375253878,1.4433,4421.1,4421.0,1.3948]
[1755375255075,0.9579,4421.1,4421.0,1.3948]
[1755375255273,0.7868,4421.1,4421.0,1.3948]
[1755375255880,1.0318,4421.1,4421.0,1.3948]
[1755375256081,1.4433,4421.1,4421.0,1.3948]
[1755375257085,1.2029,4421.1,4421.0,1.3948]
[1755375257378,0.7868,4421.1,4421.0,1.3948]
[1755375258476,0.4206,4421.2,4421.1,1.3948]
[1755375258780,1.0319,4421.2,4421.1,0.5954]
[1755375259172,1.0319,4421.2,4421.1,1.3882]
[1755375259577,1.4388,4421.2,4421.1,1.3882]
[1755375260979,1.1949,4421.2,4421.1,1.3882]
[1755375261481,1.4388,4421.2,4421.1,1.3882]
[1755375261681,0.9498,4421.2,4421.1,1.3882]
[1755375261883,1.0609,4421.8,4421.7,0.6071]
[1755375262086,0.5719,4421.1,4421.0,1.3999]
[1755375262281,1.0609,4421.1,4421.0,1.3999]
[1755375262483,1.4443,4421.1,4421.0,1.3999]
[1755375264281,0.9553,4421.1,4421.0,1.3999]
[1755375264879,0.0226,4422.2,4420.9,3.2078]
[1755375265085,0.8724,4422.0,4421.0,0.7928]
[1755375265284,0.242,4421.2,4421.1,0.2588]
[1755375265586,1.0374,4421.2,4421.1,0.6071]
[1755375265888,1.0374,4421.2,4421.1,1.3999]
[1755375266085,1.2004,4421.2,4421.1,1.3999]
[1755375266291,1.4443,4421.2,4421.1,1.3999]
[1755375267786,1.4669,4421.2,4420.4,3.2078]
[1755375267988,1.4443,4420.5,4420.4,4.3489]
[1755375268387,1.4443,4420.5,4420.4,4.6077]
[1755375271794,1.2004,4420.5,4420.4,4.6077]
[1755375271991,0.242,4420.5,4420.4,4.6077]
[1755375272188,1.1992,4421.4,4421.3,0.3483]
[1755375272383,1.39664654,4421.4,4421.3,1.3999]
[1755375272799,1.64174654,4421.4,4421.3,1.0995]
[1755375273095,1.64174987,4421.4,4421.3,0.8407]
[1755375273292,1.64174987,4421.4,4421.3,1.1411]
[1755375274491,0.19744987,4421.4,4421.3,1.3999]
[1755375279606,0.58084987,4421.4,4421.3,1.3999]
[1755375280199,0.82284987,4421.4,4421.3,1.3999]
[1755375280906,0.19744987,4421.4,4421.3,1.3999]
[1755375281109,0.3834,4422.1,4421.3,0.6071]
[1755375281407,1.64177453,4422.0,4421.9,1.3994]
[1755375281610,1.64177453,4422.0,4421.9,0.8407]
[1755375282005,1.64177453,4422.0,4421.9,0.3483]
[1755375282706,0.5719,4421.6,4421.5,1.3994]
[1755375282907,1.64177453,4421.6,4421.5,1.3994]
[1755375284502,3.2078,4422.2,4421.5,24.1957]
[1755375284705,0.4089,4422.6,4422.5,1.3994]
[1755375284906,0.60637105,4422.6,4422.5,1.3994]
[1755375285301,0.98977105,4422.6,4422.5,1.3994]
[1755375285606,0.43947105,4422.6,4422.5,1.3994]
[1755375286704,0.242,4422.6,4422.5,1.3994]
[1755375287107,1.6415204,4422.6,4422.4,3.2078]
[1755375287316,1.4443,4422.5,4422.4,4.3484]
[1755375287611,1.4443,4422.5,4422.4,4.6072]
[1755375289112,3.844,4423.3,4422.4,4.6072]
[1755375289419,1.4864,4423.1,4423.0,0.8478]
[1755375289604,1.68350347,4423.1,4423.0,0.323]
[1755375289809,0.8315,4422.7,4422.6,1.1479]
[1755375290109,1.4864,4422.7,4422.6,1.3884]
[1755375292018,0.8065,4422.7,4422.6,1.3884]
[1755375292218,1.4864,4422.7,4422.6,1.3884]
[1755375292818,1.4864,4422.7,4422.4,3.2078]
[1755375293018,0.5884,4422.7,4422.4,3.2078]
[1755375293221,0.3431,4422.5,4422.4,3.6335]
[1755375293409,1.2246,4422.5,4422.4,3.6335]
[1755375293614,1.4864,4422.5,4422.4,3.6335]
[1755375294309,1.4864,4422.5,4422.4,4.5962]
[1755375294917,0.6588,4423.2,4422.4,4.5962]
[1755375295221,0.8502,4423.0,4422.9,0.1611]
[1755375295422,1.047076,4423.0,4422.9,0.1611]
[1755375295615,0.8502,4423.0,4422.9,0.6859]
[1755375295822,1.4864,4423.0,4422.9,0.6859]
[1755375296424,1.4864,4423.0,4422.9,0.1611]
[1755375296621,0.9815,4423.0,4422.6,0.3001]
[1755375296924,0.5884,4422.8,4422.7,0.4257]
[1755375297224,1.4864,4422.8,4422.7,0.4257]
[1755375297521,1.4864,4422.8,4422.7,0.8478]
[1755375297920,1.4864,4422.8,4422.7,1.1479]
[1755375299618,1.4864,4422.8,4422.7,1.3884]
[1755375300418,0.2453,4422.8,4422.7,1.0883]
[1755375300721,0.9815,4422.8,4422.7,1.3884]
[1755375301225,1.2246,4422.8,4422.7,1.3884]
[1755375301926,3.2078,4423.8,4422.8,0.5861]
[1755375302217,0.4134,4423.8,4423.7,1.1282]
[1755375302523,0.8065,4423.8,4423.7,1.3884]
[1755375302917,1.2246,4423.8,4423.7,1.3884]
[1755375303227,14.232,4425.4,4422.6,20.558]
[1755375303228,1.4864,4423.1,4423.0,1.3884]
[1755375303521,1.2246,4423.1,4423.0,1.3884]
[1755375303718,1.1433,4423.4,4423.3,0.5635]
[1755375304021,0.848,4423.9,4423.8,0.323]
[1755375304321,1.4864,4423.9,4423.8,0.8478]
[1755375304523,1.4864,4423.9,4423.8,1.1479]
[1755375305818,1.4864,4423.9,4423.8,1.3884]
[1755375306022,1.2246,4423.9,4423.8,1.3884]
[1755375306723,1.4864,4423.9,4423.8,1.3884]
[1755375307519,0.5884,4423.9,4423.8,0.5635]
[1755375307720,0.8315,4424.4,4424.3,0.5635]
[1755375308024,1.4864,4424.4,4424.3,0.5635]
[1755375308224,1.4864,4424.4,4424.3,1.3884]
[1755375309223,3.2078,4424.4,4423.4,3.2078]
[1755375309424,0.4134,4423.5,4423.4,4.2961]
[1755375309624,0.4134,4423.5,4423.4,4.5962]
[1755375310321,1.1433,4424.3,4424.2,0.2405]
[1755375310522,1.4864,4424.3,4424.2,0.5635]
[1755375310826,1.4864,4424.3,4424.2,1.3884]
[1755375312621,3.2078,4425.4,4424.2,3.0]
[1755375312824,1.0815,4425.2,4425.1,1.3884]
[1755375313021,0.4134,4424.5,4424.4,4.2961]
[1755375313224,1.4864,4424.5,4424.4,3.2078]
[1755375313619,1.4864,4424.5,4424.4,3.5308]
[1755375313828,1.4864,4424.5,4424.4,4.5962]
[1755375314023,1.4864,4424.5,4424.4,1.3884]
[1755375314423,0.9815,4424.5,4424.4,1.3884]
[1755375314624,1.2246,4424.5,4424.4,1.3884]
[1755375314823,1.4864,4424.5,4424.4,1.3884]
[1755375315930,1.4864,4424.5,4424.4,0.8478]
[1755375316133,1.4864,4424.5,4424.4,1.1479]
[1755375316825,1.4864,4424.5,4424.4,0.1611]
[1755375317032,0.5884,4424.3,4424.2,0.4257]
[1755375317230,1.4864,4424.3,4424.2,0.8478]
[1755375317732,0.1681,4424.3,4424.2,0.323]
[1755375317932,0.6549,4424.6,4424.2,1.3884]
[1755375318129,1.4864,4424.6,4424.5,0.5635]
[1755375318334,0.1,4425.2,4425.1,1.3884]
[1755375318534,1.2433,4426.1,4426.0,0.5635]
[1755375318831,1.4937,4426.1,4426.0,1.387]
[1755375320828,0.9786,4426.1,4426.0,1.387]
[1755375321035,1.4757,4426.1,4426.0,1.387]
[1755375322632,0.8807,4426.7,4426.1,0.265]
[1755375322933,1.4757,4426.6,4426.5,0.5699]
[1755375323134,1.4757,4426.6,4426.5,1.3934]
[1755375326033,1.0525,4427.4,4427.3,0.5699]
[1755375326238,1.4757,4427.4,4427.3,1.3934]
[1755375328141,1.4757,4427.4,4427.3,0.8528]
[1755375330943,1.4757,4427.4,4427.3,1.0947]
[1755375331143,1.4757,4427.4,4427.3,1.3934]
[1755375331348,1.229,4427.4,4427.3,1.3934]
[1755375331746,1.4757,4427.4,4427.3,1.3934]
[1755375333351,0.6689,4427.4,4427.3,1.3934]
[1755375333654,0.8058,4427.4,4427.3,1.3934]
[1755375333846,0.9786,4427.4,4427.3,1.3934]
[1755375334044,1.4757,4427.4,4427.3,1.3934]
[1755375334845,0.8807,4428.1,4427.4,0.45145]
[1755375335052,1.4757,4428.1,4428.0,1.1515]
[1755375335247,1.4757,4428.1,4427.5,3.2078]
[1755375335543,0.595,4427.6,4427.5,4.6012]
[1755375335750,1.4757,4427.6,4427.5,4.6012]
[1755375337258,3.2078,4428.2,4427.5,4.6012]
[1755375337544,1.4757,4428.1,4428.0,1.3934]
[1755375337751,1.229,4428.1,4428.0,1.3934]
[1755375338252,0.4222,4428.1,4428.0,1.3934]
[1755375338851,0.8058,4428.1,4428.0,1.3934]
[1755375339043,1.4757,4428.1,4428.0,1.3934]
[1755375343143,0.3836,4428.4,4428.0,1.3934]
[1755375343342,1.0618,4428.4,4428.3,0.4027]
[1755375343551,1.4757,4428.4,4428.3,1.3934]
[1755375343947,1.4757,4428.4,4428.3,1.38436434]
[1755375344248,0.9786,4428.4,4428.3,1.38436434]
[1755375344752,1.229,4428.4,4428.3,1.38436434]
[1755375344948,1.4757,4428.4,4428.3,1.38436434]
[1755375346147,0.9786,4428.4,4428.3,1.38436434]
[1755375346353,0.8058,4428.4,4428.3,1.38436434]
[1755375346553,1.4757,4428.4,4428.3,1.38436434]
[1755375347050,3.2078,4429.3,4428.3,1.38436434]
[1755375347355,1.4757,4428.5,4428.4,1.3934]
[1755375347552,3.2303,4429.3,4428.4,1.3934]
[1755375347750,1.4757,4428.5,4428.4,1.3934]
[1755375348551,1.4757,4428.5,4428.0,3.2078]
[1755375348552,0.634,4428.4,4428.0,3.4676]
[1755375348854,1.4691,4428.1,4428.0,4.5861]